bitfinex/quotes_SOLUSD_20241202
["timestamp","ask_amount","ask_price","bid_price","bid_amount"]
[1733130987557,154.35433582,227.28,227.22,4.4]
[1733130987764,9.9642,227.34,227.22,21.05433582]
[1733130987765,137.7,227.27,227.22,21.05433582]
[1733130988137,137.7,227.27,227.24,21.05433582]
[1733130988459,137.7,227.27,227.26,4.4]
[1733130989036,137.7,227.3,227.16,0.37647]
[1733130989239,137.7,227.29,227.24,16.65433582]
[1733130989437,137.7,227.29,227.25,4.4]
[1733130989939,137.7,227.29,227.26,4.4]
[1733130990275,154.35433582,227.29,227.26,4.4]
[1733130990434,137.7,227.29,227.26,21.05433582]
[1733130990639,137.7,227.29,227.28,21.05433582]
[1733130991664,9.2171,227.4,227.28,21.05433582]
[1733130991665,137.7,227.36,227.28,21.05433582]
[1733130991863,137.7,227.36,227.32,4.4]
[1733130992365,137.7,227.35,227.32,4.4]
[1733130992840,16.65433582,227.33,227.29,4.4]
[1733130993164,16.65433582,227.31,227.29,4.4]
[1733130993851,16.65433582,227.31,227.26,4.4]
[1733130994064,137.7,227.3,227.26,4.4]
[1733130995357,137.7,227.3,227.27,4.4]
[1733130995542,16.65433582,227.29,227.27,4.4]
[1733130995743,154.35433582,227.28,227.27,4.4]
[1733130995943,137.7,227.28,227.27,4.4]
[1733130996360,137.7,227.28,227.25,4.4]
[1733130996873,137.7,227.37,227.27,21.05433582]
[1733130997049,137.7,227.37,227.33,4.4]
[1733130997241,137.7,227.36,227.33,4.4]
[1733130997939,137.7,227.36,227.31,4.4]
[1733130998853,154.35433582,227.36,227.31,4.4]
[1733130999050,154.35433582,227.36,227.3,4.4]
[1733130999357,137.7,227.31,227.3,4.4]
[1733130999549,154.35433582,227.31,227.3,4.4]
[1733130999751,137.7,227.3,227.23,4.4]
[1733130999958,154.35433582,227.3,227.23,21.05433582]
[1733131000259,137.7,227.3,227.25,4.4]
[1733131000473,137.7,227.29,227.27,21.05433582]
[1733131000763,137.7,227.29,227.28,21.05433582]
[1733131001070,137.7,227.29,227.28,4.4]
[1733131001874,137.7,227.31,227.28,21.05433582]
[1733131002248,137.7,227.31,227.28,4.4]
[1733131002444,137.7,227.31,227.28,21.05433582]
[1733131003466,137.7,227.31,227.29,4.4]
[1733131004374,137.7,227.31,227.28,4.4]
[1733131004855,137.7,227.31,227.3,21.05433582]
[1733131005057,137.7,227.31,227.3,4.4]
[1733131005260,137.7,227.31,227.3,21.05433582]
[1733131005763,137.7,227.36,227.3,21.05433582]
[1733131005950,154.35433582,227.36,227.3,4.4]
[1733131006573,16.65433582,227.34,227.3,4.4]
[1733131006744,16.65433582,227.33,227.3,4.4]
[1733131007148,16.65433582,227.33,227.26,16.65433582]
[1733131007449,16.65433582,227.33,227.27,4.4]
[1733131007651,16.65433582,227.34,227.27,21.05433582]
[1733131008665,137.7,227.33,227.27,21.05433582]
[1733131009062,137.7,227.33,227.3,4.4]
[1733131009264,137.7,227.33,227.3,21.05433582]
[1733131009870,137.7,227.33,227.3,4.4]
[1733131010976,137.7,227.36,227.31,4.4]
[1733131011579,137.7,227.35,227.32,4.4]
[1733131012374,137.7,227.35,227.33,4.4]
[1733131012874,137.7,227.33,227.3,4.4]
[1733131013459,137.7,227.31,227.25,16.65433582]
[1733131013651,137.7,227.31,227.26,16.65433582]
[1733131013851,137.7,227.32,227.28,4.4]
[1733131014169,137.7,227.32,227.28,16.65433582]
[1733131014373,137.7,227.31,227.29,16.65433582]
[1733131014564,137.7,227.35,227.3,16.65433582]
[1733131014772,137.7,227.35,227.31,4.4]
[1733131015874,16.65433582,227.34,227.32,4.4]
[1733131016066,154.35433582,227.35,227.32,4.4]
[1733131016373,137.7,227.35,227.32,4.4]
[1733131016579,154.35433582,227.35,227.32,4.4]
[1733131016960,154.35433582,227.35,227.29,4.4]
[1733131017671,137.7,227.34,227.29,21.05433582]
[1733131018576,137.7,227.34,227.29,4.4]
[1733131019008,154.35433582,227.34,227.29,4.4]
[1733131019669,154.35433582,227.34,227.28,4.4]
[1733131020367,154.35433582,227.32,227.28,4.4]
[1733131020759,137.7,227.3,227.29,4.4]
[1733131021086,137.7,227.3,227.24,16.65433582]
[1733131021087,137.7,227.29,227.24,4.4]
[1733131021256,137.7,227.29,227.24,21.05433582]
[1733131021456,137.7,227.29,227.26,4.4]
[1733131021860,137.7,227.29,227.26,16.65433582]
[1733131022061,137.7,227.29,227.27,4.4]
[1733131022262,137.7,227.33,227.28,21.05433582]
[1733131022470,137.7,227.33,227.3,4.4]
[1733131022780,137.7,227.33,227.3,21.05433582]
[1733131023079,137.7,227.33,227.3,4.4]
[1733131023374,137.7,227.33,227.28,4.4]
[1733131023987,16.65433582,227.32,227.28,4.4]
[1733131024184,16.65433582,227.31,227.28,4.4]
[1733131024364,137.7,227.29,227.24,4.4]
[1733131024768,137.7,227.28,227.17,0.25098]
[1733131024988,137.7,227.28,227.23,16.65433582]
[1733131025480,137.7,227.28,227.24,4.4]
[1733131026358,154.35433582,227.28,227.25,4.4]
[1733131026561,16.65433582,227.27,227.26,4.4]
[1733131027082,137.7,227.26,227.12,17.3118]
[1733131027288,16.65433582,227.21,227.14,16.65433582]
[1733131027585,16.65433582,227.2,227.15,4.4]
[1733131028087,16.65433582,227.17,227.16,4.4]
[1733131028265,137.7,227.23,227.16,4.4]
[1733131028266,16.65433582,227.19,227.16,4.4]
[1733131028468,16.65433582,227.21,227.16,4.4]
[1733131028982,137.7,227.23,227.17,4.4]
[1733131029184,16.65433582,227.22,227.17,4.4]
[1733131029776,16.65433582,227.2,227.17,4.4]
[1733131029962,16.65433582,227.2,227.18,4.4]
[1733131031090,16.65433582,227.2,227.19,4.4]
[1733131032268,137.7,227.19,227.11,4.4]
[1733131032473,16.65433582,227.17,227.11,4.4]
[1733131033475,16.65433582,227.17,227.1,16.65433582]
[1733131033476,16.65433582,227.13,227.1,4.4]
[1733131034484,16.65433582,227.13,227.11,4.4]
[1733131034667,154.35433582,227.14,227.11,4.4]
[1733131034869,137.7,227.13,227.11,4.4]
[1733131035071,154.35433582,227.12,227.11,4.4]
[1733131035464,154.35433582,227.12,227.06,4.4]
[1733131036278,16.65433582,227.08,227.06,4.4]
[1733131036587,44.66133582,227.15,227.0,17.3118]
[1733131036588,137.7,227.06,227.0,4.4]
[1733131036886,137.7,227.06,227.02,16.65433582]
[1733131037068,16.65433582,227.11,227.04,16.65433582]
[1733131037386,137.7,227.1,227.04,16.65433582]
[1733131037588,137.7,227.1,227.05,21.05433582]
[1733131038688,137.7,227.14,227.09,21.05433582]
[1733131038885,154.35433582,227.14,227.09,4.4]
[1733131039077,137.7,227.14,227.09,21.05433582]
[1733131039390,137.7,227.14,227.09,4.4]
[1733131039795,154.35433582,227.14,227.1,4.4]
[1733131040083,16.65433582,227.13,227.1,4.4]
[1733131040282,154.35433582,227.14,227.1,4.4]
[1733131040678,154.35433582,227.14,227.08,4.4]
[1733131041086,154.35433582,227.14,227.08,21.05433582]
[1733131041512,137.7,227.14,227.1,21.05433582]
[1733131041793,137.7,227.14,227.11,21.05433582]
[1733131041989,137.7,227.14,227.11,4.4]
[1733131042477,137.7,227.14,227.09,4.4]
[1733131042676,137.7,227.13,227.09,4.4]
[1733131042869,16.65433582,227.11,227.09,4.4]
[1733131043067,29.2278,227.2,227.04,16.65433582]
[1733131043068,16.65433582,227.1,227.04,4.4]
[1733131043479,16.65433582,227.11,227.04,21.05433582]
[1733131043686,16.65433582,227.07,227.05,4.4]
[1733131043998,16.65433582,227.08,227.05,4.4]
[1733131044169,16.65433582,227.09,227.03,4.4]
[1733131044367,16.65433582,227.1,227.03,21.05433582]
[1733131044582,16.65433582,227.11,227.05,21.05433582]
[1733131044764,137.7,227.13,227.07,21.05433582]
[1733131044966,137.7,227.13,227.09,16.65433582]
[1733131045175,35.84781667,227.39,226.98,0.1293003]
[1733131045176,16.65433582,227.1,226.98,0.1293003]
[1733131045384,16.65433582,227.1,227.04,4.4]
[1733131045586,154.35433582,227.11,227.04,21.05433582]
[1733131045786,137.7,227.11,227.08,4.4]
[1733131045989,154.35433582,227.11,227.08,4.4]
[1733131046580,16.65433582,227.1,227.08,4.4]
[1733131046800,16.65433582,227.1,227.04,4.4]
[1733131047694,154.35433582,227.1,227.04,4.4]
[1733131047893,16.65433582,227.08,227.02,4.4]
[1733131048093,16.65433582,227.06,227.02,4.4]
[1733131048285,16.65433582,227.05,226.98,16.78363612]
[1733131048494,16.65433582,227.06,226.99,16.65433582]
[1733131048806,154.35433582,227.07,227.0,16.65433582]
[1733131049127,137.7,227.09,227.04,16.65433582]
[1733131049407,137.7,227.09,227.05,16.65433582]
[1733131049589,137.7,227.09,226.99,1.00426928]
[1733131049590,137.7,227.09,227.06,16.65433582]
[1733131049992,137.7,227.12,227.07,4.4]
[1733131050697,154.35433582,227.12,227.07,4.4]
[1733131051806,16.65433582,227.11,227.06,4.4]
[1733131052778,16.65433582,227.11,227.05,4.4]
[1733131053784,154.35433582,227.11,227.05,4.4]
[1733131053981,137.7,227.13,227.09,21.05433582]
[1733131054214,137.7,227.13,227.11,4.4]
[1733131055502,137.7,227.17,227.12,21.05433582]
[1733131056812,19.7695,227.2,227.17,4.4]
[1733131056989,137.7,227.21,227.17,4.4]
[1733131057189,16.65433582,227.23,227.17,4.4]
[1733131057384,137.7,227.23,227.17,21.05433582]
[1733131057796,16.65433582,227.22,227.17,4.4]
[1733131058598,16.65433582,227.26,227.19,21.05433582]
[1733131058800,137.7,227.27,227.19,4.4]
[1733131059013,16.65433582,227.22,227.19,4.4]
[1733131059589,16.65433582,227.22,227.17,0.37647]
[1733131061304,137.7,227.27,227.17,22.30883723]
[1733131061512,16.65433582,227.25,227.17,22.30883723]
[1733131061691,16.65433582,227.22,227.17,4.77647]
[1733131062005,137.7,227.27,227.17,21.43080582]
[1733131062006,16.65433582,227.24,227.17,21.43080582]
[1733131062995,16.65433582,227.26,227.2,0.12549]
[1733131063195,16.65433582,227.26,227.21,0.12549]
[1733131063389,16.65433582,227.26,227.22,0.12549]
[1733131063598,16.65433582,227.26,227.22,0.25098]
[1733131064299,16.65433582,227.24,227.21,4.52549]
[1733131064483,16.65433582,227.22,227.21,4.4]
[1733131064811,16.65433582,227.22,227.14,4.4]
[1733131065104,137.7,227.24,227.14,4.4]
[1733131065105,16.65433582,227.21,227.15,0.25098]
[1733131066010,16.65433582,227.22,227.17,0.25098]
[1733131066192,16.65433582,227.23,227.18,0.12549]
[1733131066706,16.65433582,227.25,227.2,0.12549]
[1733131067096,16.65433582,227.24,227.2,0.12549]
[1733131067302,16.65433582,227.23,227.2,0.12549]
[1733131067489,16.65433582,227.22,227.2,0.12549]
[1733131067906,16.65433582,227.21,227.13,30.15573582]
[1733131068115,16.65433582,227.19,227.15,0.12549]
[1733131068485,16.65433582,227.2,227.15,0.37647]
[1733131069417,16.65433582,227.22,227.17,0.12549]
[1733131069606,16.65433582,227.22,227.17,0.25098]
[1733131069783,16.65433582,227.21,227.17,0.25098]
[1733131069987,16.65433582,227.22,227.17,0.25098]
[1733131070305,16.65433582,227.25,227.19,0.25098]
[1733131070501,16.65433582,227.22,227.19,0.25098]
[1733131071921,16.65433582,227.22,227.17,0.25098]
[1733131072093,16.65433582,227.22,227.18,0.12549]
[1733131073703,10.64763651,227.22,227.19,0.12549]
[1733131074696,10.64763651,227.23,227.19,4.4]
[1733131075116,10.64763651,227.21,227.14,4.4]
[1733131075324,10.64763651,227.2,227.15,0.12549]
[1733131075702,10.64763651,227.18,227.13,4.4]
[1733131076216,10.64763651,227.18,227.14,0.12549]
[1733131076605,10.64763651,227.18,227.13,4.4]
[1733131076821,10.64763651,227.18,227.12,4.4]
[1733131077004,10.64763651,227.18,227.13,0.12549]
[1733131077200,10.64763651,227.18,227.13,0.37647]
[1733131077916,137.7,227.24,227.13,4.77647]
[1733131078215,10.64763651,227.22,227.16,4.4]
[1733131078395,10.64763651,227.2,227.14,0.25098]
[1733131078595,10.64763651,227.2,227.14,0.12549]
[1733131079055,10.64763651,227.19,227.15,4.4]
[1733131079600,16.64155767,227.2,227.14,0.12549]
[1733131079915,16.64155767,227.2,227.14,16.64155767]
[1733131080116,16.64155767,227.2,227.15,4.4]
[1733131080306,16.64155767,227.2,227.14,4.4]
[1733131080505,16.64155767,227.19,227.14,4.4]
[1733131081097,16.64155767,227.2,227.14,4.4]
[1733131081502,16.64155767,227.19,227.11,0.12549]
[1733131081714,16.64155767,227.19,227.13,4.65098]
[1733131081923,16.64155767,227.2,227.13,21.29253767]
[1733131082512,16.64155767,227.21,227.13,21.29253767]
[1733131082824,16.64155767,227.19,227.13,4.4]
[1733131083007,16.64155767,227.18,227.13,4.4]
[1733131083211,16.64155767,227.14,227.13,4.4]
[1733131083817,16.64155767,227.14,227.07,4.4]
[1733131084036,16.5149,227.2,227.07,4.4]
[1733131084037,16.64155767,227.12,227.07,4.4]
[1733131084416,16.64155767,227.13,227.07,21.04155767]
[1733131084822,16.64155767,227.13,227.07,4.4]
[1733131085638,16.64155767,227.14,227.08,4.4]
[1733131085840,137.7,227.17,227.08,4.4]
[1733131086039,16.64155767,227.09,227.08,4.4]
[1733131086219,32.37735767,227.09,226.98,1.00783824]
[1733131086423,32.37735767,227.09,227.02,16.64155767]
[1733131086619,16.64155767,227.1,227.03,16.64155767]
[1733131087143,16.64155767,227.1,227.04,4.4]
[1733131087335,16.64155767,227.09,227.03,4.4]
[1733131087516,16.64155767,227.08,227.03,4.4]
[1733131088042,16.64155767,227.04,226.98,0.1293003]
[1733131088219,16.64155767,227.03,226.98,0.1293003]
[1733131088739,16.64155767,227.05,227.0,4.4]
[1733131089056,16.64155767,227.09,227.03,16.64155767]
[1733131089216,16.64155767,227.06,227.0,0.87874378]
[1733131089417,16.64155767,227.06,226.99,16.76704767]
[1733131089739,16.64155767,227.07,227.0,16.64155767]
[1733131089934,16.64155767,227.06,226.99,17.01802767]
[1733131090239,16.64155767,227.06,227.01,0.12549]
[1733131091947,16.64155767,227.12,227.06,0.12549]
[1733131092127,31.72855767,227.14,227.07,21.04155767]
[1733131092541,16.64155767,227.15,227.09,4.4]
[1733131092922,16.64155767,227.16,227.1,0.12549]
[1733131093517,16.64155767,227.15,227.1,0.12549]
[1733131093740,15.4312,227.2,227.08,4.4]
[1733131093741,16.64155767,227.14,227.08,4.4]
[1733131094139,16.64155767,227.09,227.01,16.64155767]
[1733131094341,16.64155767,227.08,227.0,16.64155767]
[1733131094718,16.64155767,227.08,227.01,4.4]
[1733131095243,16.64155767,227.05,227.02,4.4]
[1733131095441,16.64155767,227.04,226.98,0.1293003]
[1733131095749,16.64155767,227.04,226.99,0.12549]
[1733131096126,16.64155767,227.04,226.98,4.5293003]
[1733131096726,16.64155767,227.03,226.99,4.4]
[1733131097527,16.64155767,227.04,226.99,4.4]
[1733131097940,137.7,227.08,226.99,4.4]
[1733131097941,16.64155767,227.05,226.99,4.4]
[1733131098133,154.34155767,227.08,227.01,21.04155767]
[1733131098331,154.34155767,227.08,227.02,0.12549]
[1733131098543,137.7,227.08,227.03,21.04155767]
[1733131100140,16.64155767,227.26,227.07,21.04155767]
[1733131100141,154.34155767,227.14,227.07,21.04155767]
[1733131100353,16.64155767,227.14,227.09,4.4]
[1733131100535,154.34155767,227.15,227.09,4.4]
[1733131100850,15.9537,227.16,227.1,21.16704767]
[1733131101054,16.64155767,227.18,227.12,4.4]
[1733131101229,16.64155767,227.19,227.13,0.12549]
[1733131101742,16.64155767,227.18,227.13,0.12549]
[1733131102257,16.64155767,227.19,227.13,4.52549]
[1733131102550,16.64155767,227.18,227.13,4.52549]
[1733131103238,16.64155767,227.18,227.13,0.12549]
[1733131103631,16.64155767,227.17,227.13,4.52549]
[1733131103943,16.64155767,227.18,227.13,4.52549]
[1733131104141,16.64155767,227.18,227.13,0.12549]
[1733131104639,16.64155767,227.18,227.12,0.12549]
[1733131104838,16.64155767,227.21,227.16,0.12549]
[1733131105351,16.64155767,227.22,227.16,0.12549]
[1733131105735,16.64155767,227.21,227.16,0.12549]
[1733131106837,16.64155767,227.21,227.16,0.37647]
[1733131107031,16.64155767,227.2,227.16,0.37647]
[1733131107858,16.64155767,227.19,227.16,0.37647]
[1733131108452,16.64155767,227.19,227.13,4.4]
[1733131108638,16.64155767,227.2,227.13,4.4]
[1733131108844,16.64155767,227.2,227.14,0.37647]
[1733131109142,137.7,227.26,227.17,4.52549]
[1733131109346,16.64155767,227.23,227.17,4.52549]
[1733131109545,16.64155767,227.23,227.18,0.25098]
[1733131110541,16.64155767,227.22,227.18,0.25098]
[1733131110964,6.0395,227.3,227.17,0.12549]
[1733131110965,16.64155767,227.2,227.17,4.4]
[1733131111142,16.64155767,227.19,227.17,4.4]
[1733131111666,16.64155767,227.23,227.18,0.25098]
[1733131112968,16.64155767,227.22,227.18,4.65098]
[1733131114142,16.64155767,227.22,227.18,0.25098]
[1733131115652,16.64155767,227.23,227.19,0.12549]
[1733131115850,16.64155767,227.22,227.18,0.25098]
[1733131116071,16.64155767,227.21,227.18,0.25098]
[1733131118466,16.64155767,227.22,227.18,0.25098]
[1733131119167,16.64155767,227.23,227.18,0.25098]
[1733131120069,16.64155767,227.24,227.19,0.12549]
[1733131120266,6.0395,227.3,227.21,0.12549]
[1733131120267,16.64155767,227.27,227.21,0.12549]
[1733131120468,16.64155767,227.26,227.21,0.12549]
[1733131120652,16.64155767,227.22,227.2,4.4]
[1733131121478,16.64155767,227.22,227.21,4.4]
[1733131121654,16.64155767,227.22,227.13,4.52549]
[1733131121849,16.64155767,227.19,227.13,4.52549]
[1733131122071,16.64155767,227.19,227.15,0.12549]
[1733131125172,16.64155767,227.18,227.12,4.4]
[1733131125375,16.64155767,227.18,227.13,0.12549]
[1733131125555,16.64155767,227.14,227.12,4.4]
[1733131125756,16.64155767,227.13,227.12,4.4]
[1733131126163,16.64155767,227.13,227.07,0.25098]
[1733131127160,16.64155767,227.13,227.08,0.12549]
[1733131129785,16.64155767,227.11,227.07,4.65098]
[1733131130085,16.64155767,227.09,227.07,4.4]
[1733131130291,16.64155767,227.08,227.07,4.4]
[1733131130668,16.64155767,227.08,227.02,4.4]
[1733131130969,16.64155767,227.07,227.02,4.4]
[1733131131386,137.7,227.12,227.03,0.25098]
[1733131131683,16.64155767,227.07,227.04,0.12549]
[1733131132868,16.64155767,227.05,227.01,4.4]
[1733131133075,6.4733,227.11,227.01,4.4]
[1733131133076,16.64155767,227.03,227.01,4.4]
[1733131134000,16.64155767,227.02,226.99,0.25098]
[1733131134190,137.7,227.08,226.99,0.25098]
[1733131134191,16.64155767,227.01,226.99,0.25098]
[1733131134690,16.64155767,227.01,226.99,0.12549]
[1733131134887,16.64155767,227.02,226.99,0.37647]
[1733131135084,16.64155767,227.0,226.98,0.1293003]
[1733131135268,16.64155767,226.99,226.98,0.1293003]
[1733131137682,16.64155767,226.99,226.98,0.2547903]
[1733131138197,16.64155767,227.0,226.99,0.12549]
[1733131138570,16.64155767,227.0,226.98,0.1293003]
[1733131138770,16.64155767,226.99,226.98,0.1293003]
[1733131138985,16.64155767,227.0,226.98,0.2547903]
[1733131139292,6.1089,227.01,226.99,0.12549]
[1733131139469,16.64155767,227.0,226.99,0.12549]
[1733131139672,6.1089,227.01,226.99,0.12549]
[1733131139871,137.7,227.02,226.99,17.01802767]
[1733131140284,137.7,227.06,227.02,0.25098]
[1733131140871,137.7,227.07,227.03,16.76704767]
[1733131141069,15.5038,227.12,227.08,0.12549]
[1733131141273,15.5038,227.12,227.09,0.25098]
[1733131141489,15.5038,227.12,227.1,0.12549]
[1733131141890,16.64155767,227.11,227.04,16.64155767]
[1733131142077,16.64155767,227.09,227.03,0.12549]
[1733131142273,16.64155767,227.07,227.03,0.12549]
[1733131142477,16.64155767,227.06,227.03,0.12549]
[1733131142699,16.64155767,227.06,227.0,0.25098]
[1733131142999,16.64155767,227.07,227.0,16.89253767]
[1733131143994,137.7,227.1,227.0,16.89253767]
[1733131143995,137.7,227.1,227.05,0.12549]
[1733131144186,153.2038,227.12,227.08,0.25098]
[1733131144384,169.84535767,227.12,227.08,0.25098]
[1733131144700,16.64155767,227.11,227.06,0.12549]
[1733131144994,137.7,227.08,227.06,0.12549]
[1733131145202,154.34155767,227.07,227.06,0.12549]
[1733131145372,16.64155767,227.07,227.03,0.12549]
[1733131145578,16.64155767,227.06,227.03,0.12549]
[1733131145993,16.64155767,227.06,227.02,0.12549]
[1733131146199,16.64155767,227.04,227.01,4.4]
[1733131146377,16.64155767,227.02,226.95,16.64155767]
[1733131146602,16.64155767,227.01,226.94,16.64155767]
[1733131146780,137.7,227.01,226.95,16.64155767]
[1733131147187,137.7,227.01,226.99,0.12549]
[1733131148087,137.7,227.01,226.96,4.4]
[1733131148299,137.7,227.01,226.99,0.12549]
[1733131148683,137.7,227.01,227.0,4.65098]
[1733131149275,137.7,227.01,227.0,4.77647]
[1733131149698,137.7,227.01,227.0,0.37647]
[1733131149904,16.64155767,227.06,227.02,0.12549]
[1733131150205,16.64155767,227.07,227.02,0.12549]
[1733131151099,16.64155767,227.06,227.02,0.12549]
[1733131152108,16.64155767,227.05,227.02,0.12549]
[1733131152810,16.64155767,227.04,227.01,0.25098]
[1733131152977,16.64155767,227.02,226.99,4.4]
[1733131153183,154.34155767,227.01,226.98,0.1293003]
[1733131153887,154.34155767,227.01,226.99,0.12549]
[1733131153888,6.2139,227.01,226.99,0.12549]
[1733131154210,16.64155767,227.0,226.99,0.12549]
[1733131154406,16.64155767,227.0,226.98,0.1293003]
[1733131154704,16.64155767,226.99,226.98,0.1293003]
[1733131155386,16.64155767,226.99,226.98,0.3802803]
[1733131155819,16.64155767,226.99,226.98,0.5057703]
[1733131156101,16.64155767,226.99,226.98,0.1293003]
[1733131161694,137.7,226.98,226.9,4.4]
[1733131161901,16.64155767,226.91,226.79,0.87936761]
[1733131162103,16.64155767,226.89,226.84,4.4]
[1733131162298,16.64155767,226.88,226.84,4.4]
[1733131162703,16.64155767,226.87,226.84,4.4]
[1733131163214,16.64155767,226.87,226.81,4.4]
[1733131163391,16.64155767,226.86,226.81,4.4]
[1733131163595,16.64155767,226.83,226.76,0.5345279]
[1733131163824,16.64155767,226.83,226.77,16.64155767]
[1733131164005,16.64155767,226.83,226.76,17.17608557]
[1733131164207,16.64155767,226.81,226.76,0.5345279]
[1733131164508,16.64155767,226.8,226.76,0.5345279]
[1733131164718,16.64155767,226.81,226.76,0.5345279]
[1733131164919,16.64155767,226.82,226.76,17.17608557]
[1733131165102,154.34155767,226.86,226.81,0.25098]
[1733131165495,154.34155767,226.86,226.82,0.12549]
[1733131166326,16.64155767,226.87,226.82,0.12549]
[1733131166816,16.64155767,226.86,226.82,0.12549]
[1733131167207,16.64155767,226.85,226.82,0.12549]
[1733131167411,16.3223,226.89,226.76,0.5345279]
[1733131167412,137.7,226.82,226.76,0.5345279]
[1733131167602,16.64155767,226.81,226.76,0.5345279]
[1733131167918,16.64155767,226.8,226.76,0.5345279]
[1733131168211,137.7,226.87,226.76,17.17608557]
[1733131168514,16.64155767,226.84,226.77,16.89253767]
[1733131168906,154.34155767,226.86,226.8,0.25098]
[1733131169110,16.64155767,226.84,226.8,0.25098]
[1733131169491,16.64155767,226.84,226.81,0.12549]
[1733131169807,137.7,226.85,226.81,0.12549]
[1733131169808,16.64155767,226.83,226.81,0.12549]
[1733131169995,137.7,226.85,226.8,0.12549]
[1733131170396,16.64155767,226.84,226.8,0.12549]
[1733131171095,16.64155767,226.83,226.8,0.12549]
[1733131171320,16.64155767,226.81,226.76,0.5345279]
[1733131171527,16.3223,226.89,226.76,0.5345279]
[1733131171528,16.64155767,226.78,226.76,0.5345279]
[1733131171733,16.64155767,226.77,226.76,0.5345279]
[1733131173609,26.74314289,226.77,226.76,0.5345279]
[1733131174501,31.74314289,226.77,226.64,0.12549]
[1733131174700,26.74314289,226.7,226.64,0.12549]
[1733131174928,26.74314289,226.71,226.64,0.12549]
[1733131175422,26.74314289,226.71,226.64,0.37647]
[1733131175802,26.74314289,226.67,226.6,26.74314289]
[1733131176209,26.74314289,226.68,226.62,0.25098]
[1733131176614,26.74314289,226.7,226.64,0.25098]
[1733131176920,26.74314289,226.74,226.68,0.12549]
[1733131177136,137.7,226.76,226.72,0.12549]
[1733131177619,137.7,226.75,226.64,0.25098]
[1733131177825,26.74314289,226.7,226.65,0.12549]
[1733131178029,26.74314289,226.68,226.64,0.25098]
[1733131178229,26.74314289,226.66,226.59,26.74314289]
[1733131178904,26.74314289,226.67,226.61,4.4]
[1733131179105,26.74314289,226.67,226.61,0.25098]
[1733131179305,164.44314289,226.7,226.61,0.25098]
[1733131179625,26.74314289,226.7,226.67,0.12549]
[1733131179818,26.74314289,226.69,226.67,0.12549]
[1733131180536,137.7,226.77,226.62,0.88026397]
[1733131180825,15.1382,226.78,226.6,6.5509]
[1733131180826,26.74314289,226.7,226.63,31.14314289]
[1733131181027,15.1382,226.78,226.6,6.5509]
[1733131181028,26.74314289,226.71,226.64,31.14314289]
[1733131181200,137.7,226.74,226.64,31.14314289]
[1733131181201,137.7,226.74,226.64,4.4]
[1733131181404,137.7,226.74,226.6,6.5509]
[1733131181405,26.74314289,226.73,226.67,0.25098]
[1733131181630,26.74314289,226.72,226.68,0.12549]
[1733131182107,137.7,226.77,226.61,4.4]
[1733131182108,137.7,226.68,226.61,4.4]
[1733131182431,26.74314289,226.65,226.59,0.25098]
[1733131182926,26.74314289,226.66,226.6,0.25098]
[1733131183236,137.7,226.68,226.62,0.25098]
[1733131183528,137.7,226.68,226.63,0.12549]
[1733131183914,164.44314289,226.68,226.63,0.12549]
[1733131184319,137.7,226.68,226.63,0.12549]
[1733131184725,26.74314289,226.72,226.65,0.12549]
[1733131185105,26.39391826,226.72,226.67,0.12549]
[1733131185310,6.5004,226.75,226.67,0.12549]
[1733131185311,26.74314289,226.7,226.67,0.12549]
[1733131185713,26.74314289,226.69,226.67,0.12549]
[1733131186610,26.74314289,226.7,226.67,0.12549]
[1733131187325,137.7,226.73,226.69,0.37647]
[1733131188030,7.35929446,226.83,226.72,0.12549]
[1733131188031,26.74314289,226.78,226.72,0.12549]
[1733131188221,26.74314289,226.76,226.74,0.12549]